bitfinex/quotes_SOLUSD_20220128
["timestamp","ask_amount","ask_price","bid_price","bid_amount"]
[1643373697916,30.73872443,87.589,87.479,12.94424215]
[1643373698117,17.145,87.58,87.503,48.01780146]
[1643373698318,0.25,87.579,87.503,48.01780146]
[1643373699519,0.25,87.587,87.503,48.01780146]
[1643373700120,0.25,87.587,87.504,0.25]
[1643373701119,17.146,87.58,87.504,0.25]
[1643373701323,0.25,87.579,87.504,0.25]
[1643373701519,0.25,87.579,87.503,48.01780146]
[1643373702323,7.96878363,87.569,87.503,48.01780146]
[1643373702723,0.25,87.568,87.503,48.01780146]
[1643373702925,0.25,87.568,87.481,6.0]
[1643373703121,0.25,87.568,87.49,6.0]
[1643373703523,0.25,87.568,87.45,3.16716936]
[1643373703524,0.25,87.568,87.491,0.25]
[1643373703924,17.146,87.58,87.491,2.10961123]
[1643373704124,48.2921,87.588,87.501,6.0]
[1643373704324,48.2921,87.588,87.51,13.58]
[1643373704534,30.43819829,87.579,87.51,13.58]
[1643373704724,48.2921,87.588,87.511,0.25]
[1643373704926,48.2921,87.588,87.511,2.35961123]
[1643373705428,48.2921,87.588,87.511,0.25]
[1643373705626,27.64197139,87.587,87.521,37.02910631]
[1643373705830,0.25,87.586,87.521,37.02910631]
[1643373706229,57.141,87.62,87.521,37.02910631]
[1643373706230,3.12670373,87.621,87.522,0.25]
[1643373706528,114.248,87.87,87.531,6.0]
[1643373706529,17.138,87.63,87.531,6.0]
[1643373706728,17.138,87.63,87.532,112.9]
[1643373706929,17.138,87.63,87.54,6.0]
[1643373707135,33.74859307,87.629,87.542,6.0]
[1643373707334,33.74859307,87.629,87.543,43.94338563]
[1643373707531,0.25,87.628,87.543,43.69338563]
[1643373707730,17.138,87.62,87.543,43.69338563]
[1643373707933,33.74859307,87.629,87.544,0.25]
[1643373708230,33.74859307,87.629,87.553,6.0]
[1643373708430,3.12670373,87.646,87.553,6.0]
[1643373708630,3.12670373,87.65,87.554,0.25]
[1643373708830,3.12670373,87.66,87.56,17.13]
[1643373709031,4.67521242,87.685,87.57,13.58]
[1643373709231,46.8244,87.726,87.57,19.58]
[1643373709431,3.09607094,87.725,87.6,169.7]
[1643373709630,46.8244,87.726,87.61,19.58]
[1643373709830,46.8244,87.726,87.611,113.15]
[1643373710035,46.8244,87.726,87.64,17.114]
[1643373710331,46.8244,87.726,87.62,57.043]
[1643373710332,13.58,87.8,87.65,13.58]
[1643373710535,3.08632462,87.746,87.66,6.0]
[1643373710732,3.08632462,87.764,87.671,42.51629717]
[1643373710934,3.08632462,87.769,87.671,42.51629717]
[1643373711133,17.107,87.78,87.69,17.105]
[1643373711334,3.08632462,87.779,87.7,13.58]
[1643373711537,3.08632462,87.818,87.7,19.58]
[1643373711731,3.08632462,87.818,87.701,27.55948696]
[1643373711932,64.75979955,87.817,87.701,27.30948696]
[1643373712133,112.9,87.816,87.64,169.7]
[1643373712432,112.9,87.816,87.624,77.1275]
[1643373712433,17.105,87.79,87.63,13.58]
[1643373712632,17.105,87.79,87.624,77.1275]
[1643373712633,6.0,87.78,87.64,13.58]
[1643373712833,6.0,87.78,87.642,2.10961123]
[1643373713037,6.0,87.804,87.652,6.0]
[1643373713232,6.0,87.804,87.69,17.104]
[1643373713233,17.104,87.8,87.69,17.104]
[1643373713435,4.05738455,87.803,87.69,17.104]
[1643373713436,3.07287107,87.803,87.69,30.684]
[1643373713634,16.39834537,87.83,87.7,6.0]
[1643373713835,0.04518824,87.871,87.71,13.58]
[1643373714034,19.35503679,87.851,87.72,6.0]
[1643373714234,19.35503679,87.851,87.73,13.58]
[1643373714436,43.68520951,87.841,87.73,30.677]
[1643373714638,43.68520951,87.841,87.74,6.0]
[1643373714838,43.68520951,87.841,87.741,40.29797801]
[1643373715037,43.68520951,87.841,87.751,6.0]
[1643373715237,6.0,87.831,87.72,13.58]
[1643373715436,6.0,87.831,87.68,13.58]
[1643373715638,6.0,87.831,87.654,112.9]
[1643373715639,52.6474998,87.841,87.718,2.10961123]
[1643373715836,0.25,87.84,87.73,13.58]
[1643373716036,0.25,87.84,87.74,6.0]
[1643373716235,0.25,87.84,87.74,19.58]
[1643373716465,0.25,87.84,87.741,0.25]
[1643373716638,0.25,87.84,87.741,6.25]
[1643373716834,17.098,87.83,87.741,6.25]
[1643373717036,17.098,87.83,87.751,31.90919345]
[1643373717337,0.25,87.829,87.751,37.90919345]
[1643373717535,0.25,87.829,87.74,13.58]
[1643373717736,0.25,87.829,87.73,13.58]
[1643373717935,0.25,87.829,87.71,13.58]
[1643373717936,17.1,87.82,87.71,13.58]
[1643373718139,6.0,87.81,87.69,13.58]
[1643373718337,72.3874,87.809,87.69,13.58]
[1643373718537,75.34409142,87.809,87.691,20.43232857]
[1643373718941,46.3814,87.819,87.71,17.101]
[1643373719140,46.3814,87.819,87.72,13.58]
[1643373719338,46.3814,87.819,87.721,0.25]
[1643373719538,36.58806168,87.818,87.721,47.24375413]
[1643373719739,6.0,87.809,87.721,47.24375413]
[1643373719940,17.105,87.8,87.721,47.24375413]
[1643373720137,12.76615419,87.799,87.721,47.24375413]
[1643373720339,13.01615419,87.799,87.721,47.24375413]
[1643373720941,46.3814,87.819,87.722,0.25]
[1643373721139,46.3814,87.819,87.731,6.0]
[1643373721340,46.3814,87.819,87.732,0.25]
[1643373721539,46.3814,87.819,87.74,6.0]
[1643373721739,23.5312,87.819,87.74,6.0]
[1643373721940,41.7923707,87.818,87.741,22.83203]
[1643373722141,17.096,87.84,87.741,22.83203]
[1643373722341,22.5479,87.856,87.741,24.94164123]
[1643373722540,22.5479,87.856,87.751,6.0]
[1643373722741,22.5479,87.856,87.76,13.58]
[1643373723142,42.73511175,87.855,87.77,6.0]
[1643373723344,42.73511175,87.855,87.771,0.25]
[1643373723544,42.73511175,87.855,87.771,6.25]
[1643373723842,17.091,87.87,87.771,6.25]
[1643373724043,24.1943,87.888,87.78,13.58]
[1643373724244,23.7515,87.912,87.78,13.58]
[1643373724543,23.7515,87.912,87.791,112.9]
[1643373724745,23.7515,87.912,87.79,6.0]
[1643373724944,17.092,87.87,87.791,35.12775215]
[1643373725144,3.32034972,87.869,87.801,6.0]
[1643373725343,3.32034972,87.869,87.802,0.25]
[1643373725744,49.1922,87.911,87.802,0.25]
[1643373725946,56.942,87.93,87.81,17.081]
[1643373726150,6.0,87.92,87.82,13.58]
[1643373726349,6.0,87.92,87.83,0.30329355]
[1643373726545,149.2671,88.009,87.84,13.58]
[1643373726546,6.0,87.999,87.84,13.58]
[1643373726748,54.03613561,87.999,87.851,37.32171819]
[1643373726945,48.03613561,87.999,87.88,17.067]
[1643373727146,48.03613561,87.999,87.89,13.58]
[1643373727345,48.03613561,87.999,87.89,19.58]
[1643373727546,48.03613561,87.999,87.89,13.58]
[1643373727746,48.03613561,87.999,87.891,0.25]
[1643373728046,17.068,87.99,87.901,35.45979142]
[1643373728453,48.03613561,87.999,87.843,74.4349]
[1643373728454,6.0,87.98,87.843,74.4349]
[1643373728650,6.0,87.989,87.853,6.0]
[1643373728850,6.0,87.989,87.854,113.15]
[1643373729048,6.0,87.989,87.89,17.066]
[1643373729249,6.0,87.989,87.9,13.58]
[1643373729449,6.0,87.989,87.901,39.4807229]
[1643373729850,6.0,87.989,87.902,0.25]
[1643373730048,0.25,87.988,87.901,39.4807229]
[1643373730248,1.31808026,87.979,87.901,39.4807229]
[1643373730650,6.0,87.969,87.902,0.25]
[1643373730849,0.25,87.968,87.902,0.25]
[1643373731584,0.25,87.968,87.901,39.4807229]
[1643373731781,0.25,87.968,87.9,13.58]
[1643373731983,111.9,87.966,87.74,229.8505]
[1643373732181,111.9,87.966,87.86,6.0]
[1643373732381,111.9,87.966,87.854,6.0]
[1643373732382,6.0,87.956,87.854,6.0]
[1643373732582,6.0,87.956,87.79,169.7]
[1643373732583,17.081,87.93,87.83,13.58]
[1643373732881,40.58490037,87.929,87.831,43.39368146]
[1643373733081,40.33490037,87.929,87.831,43.39368146]
[1643373733282,0.25,87.928,87.832,0.25]
[1643373734282,6.0,87.919,87.832,0.25]
[1643373734483,6.0,87.919,87.84,13.58]
[1643373734683,0.25,87.928,87.85,17.073]
[1643373734882,17.074,87.96,87.86,13.58]
[1643373735684,17.074,87.96,87.85,6.0]
[1643373735889,6.0,87.95,87.861,26.43210267]
[1643373736085,17.078,87.93,87.861,26.43210267]
[1643373736288,0.25,87.929,87.861,26.43210267]
[1643373736990,0.25,87.929,87.87,13.58]
[1643373737192,0.25,87.929,87.871,6.0]
[1643373737394,56.895,88.01,87.88,6.0]
[1643373737588,56.895,88.01,87.881,6.0]
[1643373737794,56.895,88.01,87.881,6.25]
[1643373737989,13.58,88.04,87.881,6.0]
[1643373738189,41.4552693,87.964,87.882,43.39368146]
[1643373739290,0.25,87.963,87.882,43.39368146]
[1643373740491,0.25,87.963,87.892,6.0]
[1643373740891,0.25,87.963,87.882,43.39368146]
[1643373741995,41.2052693,87.964,87.883,115.01522732]
[1643373742193,6.0,87.954,87.893,112.9]
[1643373742491,41.2052693,87.964,87.901,26.68210267]
[1643373742719,6.0,87.954,87.901,26.68210267]
[1643373743294,0.25,87.953,87.901,26.68210267]
[1643373744291,22.6224,87.996,87.901,26.68210267]
[1643373744292,22.6224,87.996,87.902,0.25]
[1643373744692,6.0,87.986,87.902,0.25]
[1643373744893,3.07329558,87.985,87.902,0.25]
[1643373745292,6.0,87.975,87.902,0.25]
[1643373745492,6.0,87.975,87.9,13.58]
[1643373745692,6.0,87.974,87.9,13.58]
[1643373746093,6.0,87.974,87.84,17.072]
[1643373746293,6.0,87.974,87.801,24.4049]
[1643373746294,112.9,87.966,87.86,13.58]
[1643373746497,112.9,87.966,87.861,43.97136557]
[1643373746498,11.19597882,87.965,87.861,43.97136557]
[1643373746693,6.0,87.956,87.861,43.97136557]
[1643373746895,6.25,87.955,87.861,43.97136557]
[1643373747094,6.0,87.945,87.87,13.58]
[1643373747293,0.25,87.944,87.87,30.65]
[1643373747494,0.25,87.944,87.871,2.11522732]
[1643373747694,7.7920207,88.045,87.88,6.0]
[1643373747894,6.0,87.973,87.89,13.58]
[1643373748095,9.07752392,87.972,87.89,13.58]
[1643373748298,3.07752392,87.971,87.891,0.25]
[1643373748496,47.86722779,87.97,87.891,26.35441856]
[1643373748698,6.0,87.961,87.891,26.35441856]
[1643373748898,0.25,87.96,87.891,26.35441856]
[1643373749101,6.0,87.959,87.891,26.35441856]
[1643373749298,0.25,87.958,87.891,26.35441856]
[1643373750223,1.23698808,87.956,87.892,2.11522732]
[1643373750499,3.34566333,87.955,87.893,0.25]
[1643373750699,6.0,87.946,87.902,6.0]
[1643373751001,3.34566333,87.945,87.901,6.0]
[1643373751202,0.25,87.945,87.891,26.35441856]
[1643373751401,3.09650563,87.944,87.891,26.35441856]
[1643373751606,3.09650563,87.982,87.901,6.0]
[1643373751802,3.09650563,87.982,87.91,13.58]
[1643373752004,6.0,87.972,87.91,13.58]
[1643373752203,43.6082804,87.971,87.91,13.58]
[1643373752403,3.09650563,87.97,87.911,39.78837858]
[1643373753203,0.25,87.969,87.912,0.25]
[1643373753404,3.09650563,87.968,87.912,0.25]
[1643373753802,0.25,87.967,87.911,39.78837858]
[1643373754007,3.09650563,87.966,87.911,39.78837858]
[1643373754403,0.25,87.965,87.911,39.78837858]
[1643373754606,3.09650563,87.964,87.911,39.78837858]
[1643373754802,1.55145942,87.927,87.911,39.78837858]
[1643373755002,1.55145942,87.925,87.921,6.0]
[1643373755204,1.55145942,87.929,87.921,6.0]
[1643373755404,1.55145942,87.923,87.921,6.0]
[1643373756207,1.55145942,87.922,87.911,39.78837858]
[1643373756710,1.55145942,87.918,87.9,13.58]
[1643373756907,1.55145942,87.92,87.901,0.25]
[1643373757308,1.55145942,87.922,87.9,13.58]
[1643373757732,1.55145942,87.92,87.9,13.58]
[1643373757932,1.55145942,87.92,87.901,41.65160004]
[1643373758733,1.55145942,87.92,87.902,0.25]
[1643373759136,1.55145942,87.922,87.902,0.25]
[1643373759338,1.55145942,87.922,87.901,41.65160004]
[1643373759636,1.55145942,87.919,87.88,13.58]
[1643373759835,1.55145942,87.908,87.86,13.58]
[1643373760236,1.55145942,87.901,87.86,13.58]
[1643373760436,1.55145942,87.901,87.861,40.37660535]
[1643373760638,1.55145942,87.899,87.861,40.37660535]
[1643373761038,1.55145942,87.901,87.861,40.37660535]
[1643373761238,1.55145942,87.9,87.861,40.37660535]
[1643373761438,1.80145942,87.9,87.861,40.37660535]
[1643373761636,1.55145942,87.897,87.861,40.37660535]
[1643373761841,1.55145942,87.893,87.861,40.37660535]
[1643373762037,1.55145942,87.892,87.861,40.37660535]
[1643373762337,1.55145942,87.899,87.862,0.25]
[1643373762538,1.55145942,87.902,87.862,113.15]
[1643373762741,30.29189415,87.968,87.873,75.0]
[1643373763039,3.10875462,87.967,87.88,13.58]
[1643373763241,34.82062865,87.966,87.881,28.14771936]
[1643373763442,9.32654877,87.965,87.881,28.39771936]
[1643373763640,9.32654877,87.965,87.88,13.58]
[1643373763839,6.0,87.955,87.85,13.58]
[1643373764040,3.10875462,87.954,87.85,13.58]
[1643373764441,6.0,87.944,87.85,13.58]
[1643373764639,18.94380126,87.943,87.851,47.47475096]
[1643373764841,6.0,87.933,87.851,47.47475096]
[1643373765042,6.0,87.93,87.851,47.47475096]
[1643373765241,3.10875462,87.929,87.83,13.58]
[1643373765441,6.0,87.922,87.82,13.58]
[1643373765643,6.0,87.919,87.82,13.58]
[1643373765844,3.35875462,87.918,87.82,13.58]
[1643373766242,17.085,87.9,87.821,41.6259762]
[1643373766443,3.10875462,87.899,87.821,41.6259762]
[1643373766643,15.83504664,87.889,87.82,13.58]
[1643373766845,0.25,87.888,87.821,0.25]
[1643373767046,3.35875462,87.888,87.821,0.25]
[1643373767443,3.10875462,87.887,87.821,0.25]
[1643373767645,3.10875462,87.887,87.821,38.24026099]
[1643373767845,0.25,87.886,87.821,38.24026099]
[1643373768046,3.10875462,87.885,87.821,38.24026099]
[1643373768247,6.0,87.879,87.821,38.24026099]
[1643373768446,0.25,87.884,87.821,38.24026099]
[1643373768650,6.0,87.879,87.821,38.24026099]
[1643373768847,0.25,87.878,87.821,38.24026099]
[1643373769652,0.25,87.878,87.822,112.9]
[1643373769850,0.25,87.878,87.823,0.25]
[1643373771348,6.0,87.879,87.823,0.25]
[1643373772450,0.25,87.878,87.82,13.58]
[1643373772650,0.25,87.878,87.808,112.9]
[1643373772851,0.25,87.878,87.809,0.25]
[1643373773451,0.25,87.878,87.809,36.41407138]
[1643373774053,15.83504664,87.889,87.81,126.48]
[1643373774253,0.25,87.888,87.811,0.25]
[1643373776757,0.25,87.888,87.82,6.0]
[1643373777158,0.25,87.888,87.821,0.25]
[1643373777959,0.25,87.888,87.81,13.58]
[1643373779160,0.25,87.888,87.811,0.25]
[1643373779964,0.25,87.888,87.81,13.58]
[1643373780365,6.0,87.879,87.81,13.58]
[1643373780769,0.25,87.878,87.81,13.58]
[1643373781167,0.25,87.878,87.79,13.58]
[1643373781468,0.25,87.878,87.8,6.0]
[1643373781670,0.25,87.878,87.771,0.25]
[1643373781967,6.25,87.878,87.781,43.29531615]
[1643373782366,34.82062865,87.868,87.791,6.0]
[1643373782570,6.0,87.858,87.791,6.0]
[1643373782768,0.25,87.857,87.791,6.0]
[1643373783067,15.83504664,87.849,87.791,6.0]
[1643373783268,0.25,87.848,87.791,6.0]
[1643373784382,6.0,87.839,87.76,13.58]
[1643373784783,0.25,87.838,87.76,13.58]
[1643373784983,0.25,87.838,87.761,39.46016416]
[1643373785185,0.25,87.838,87.76,13.58]
[1643373785585,0.25,87.838,87.761,0.25]
[1643373786183,0.25,87.838,87.735,24.8772]
[1643373786184,17.098,87.83,87.74,13.58]
[1643373786383,17.098,87.83,87.738,35.00301202]
[1643373786384,0.25,87.829,87.71,13.58]
[1643373786583,0.25,87.829,87.698,112.9]
[1643373786584,6.0,87.82,87.698,112.9]
[1643373786784,0.25,87.819,87.698,112.9]
[1643373787185,11.12399045,87.818,87.674,2.11522732]
[1643373787384,11.12399045,87.818,87.669,18.13318064]
[1643373787385,17.105,87.8,87.687,45.70697977]
[1643373787585,112.9,87.798,87.687,45.70697977]
[1643373787787,6.0,87.79,87.687,45.70697977]
[1643373787986,0.25,87.797,87.688,20.83248254]
[1643373788188,6.25,87.789,87.69,13.58]
[1643373788385,0.25,87.788,87.691,113.15]
[1643373788585,0.25,87.788,87.691,131.28318064]
[1643373789385,6.0,87.78,87.691,112.9]
[1643373789588,6.0,87.779,87.673,18.13318064]
[1643373789788,6.25,87.779,87.67,13.58]
[1643373789988,6.25,87.779,87.68,6.0]
[1643373790187,112.9,87.778,87.68,6.0]
[1643373790391,35.07062865,87.777,87.68,37.06358305]
[1643373790790,17.113,87.76,87.681,113.15]
[1643373790987,15.83504664,87.759,87.681,113.15]
[1643373791187,6.0,87.75,87.681,113.15]
[1643373791388,0.25,87.749,87.681,0.25]
[1643373791588,0.25,87.749,87.69,6.0]
[1643373791789,0.25,87.749,87.691,0.25]
[1643373792189,0.25,87.749,87.69,6.0]
[1643373792790,6.25,87.749,87.69,6.0]
[1643373794293,6.25,87.749,87.681,6.0]
[1643373794695,6.25,87.749,87.682,0.25]
[1643373795599,6.25,87.749,87.684,6.0]
[1643373795797,6.25,87.749,87.685,113.15]
[1643373796101,0.25,87.749,87.685,113.15]
[1643373796299,0.25,87.758,87.685,113.15]
[1643373796500,0.25,87.787,87.7,13.58]
[1643373796698,0.25,87.787,87.696,112.9]
[1643373796699,0.25,87.787,87.71,13.58]
[1643373797499,43.47871361,87.788,87.71,13.58]
[1643373797700,13.58,87.88,87.711,75.0]
[1643373797901,49.8067,87.879,87.721,112.9]
[1643373798106,49.8067,87.879,87.73,13.58]
[1643373798300,49.8067,87.879,87.75,17.093]
[1643373798501,17.088,87.89,87.76,13.58]
[1643373798701,49.47413239,87.863,87.76,19.58]
[1643373798904,49.47413239,87.863,87.761,11.5909507]
[1643373799101,49.47413239,87.863,87.761,17.5909507]
[1643373799301,49.47413239,87.863,87.77,13.58]
[1643373799601,49.47413239,87.863,87.78,23.088]
[1643373799802,49.47413239,87.863,87.781,113.15]
[1643373800103,49.47413239,87.863,87.791,32.32741724]
[1643373800302,0.25,87.862,87.791,32.32741724]
[1643373800503,0.25,87.862,87.801,6.0]
[1643373800706,0.25,87.862,87.81,13.58]
[1643373801903,0.25,87.862,87.811,48.38054627]
[1643373804206,0.25,87.862,87.81,13.58]
[1643373804406,0.25,87.862,87.801,6.0]
[1643373804605,0.25,87.862,87.79,19.58]
[1643373804806,0.25,87.862,87.79,13.58]
[1643373805006,0.25,87.862,87.8,6.0]
[1643373805206,0.25,87.862,87.801,21.22094627]
[1643373806008,0.25,87.862,87.8,6.0]
[1643373806209,0.25,87.862,87.79,13.58]
[1643373806508,0.25,87.862,87.8,6.0]
[1643373806913,0.25,87.862,87.801,37.5316186]
[1643373807517,0.25,87.862,87.8,6.0]
[1643373807714,0.25,87.862,87.78,13.58]
[1643373808316,0.25,87.862,87.734,20.34610206]
[1643373808317,2.95669142,87.861,87.76,13.58]
[1643373808513,17.093,87.86,87.752,45.25913222]
[1643373808715,17.343,87.86,87.744,6.0]
[1643373808914,2.95669142,87.859,87.75,6.0]
[1643373809314,10.42217378,87.858,87.75,6.0]
[1643373809514,10.42217378,87.858,87.672,24.0282]
[1643373809714,10.42217378,87.858,87.71,13.58]
[1643373809715,13.58,87.85,87.71,13.58]
[1643373809921,1.4315429,87.849,87.711,35.51887117]
[1643373810125,112.9,87.848,87.711,35.51887117]
[1643373810347,44.13111853,87.829,87.711,35.51887117]
[1643373810546,44.13111853,87.829,87.71,13.58]
[1643373810547,112.9,87.828,87.71,13.58]
[1643373810746,0.31108522,87.826,87.69,13.58]
[1643373810966,0.31108522,87.826,87.629,117.97745142]
[1643373811151,0.31108522,87.826,87.67,13.58]
[1643373811152,15.43019016,87.825,87.67,13.58]
[1643373811361,17.107,87.8,87.67,13.58]
[1643373811549,17.107,87.8,87.638,112.9]
[1643373811550,119.42455676,87.799,87.638,112.9]
[1643373811750,24.7181,87.798,87.65,13.58]
[1643373812050,66.70994422,87.798,87.66,6.0]
[1643373812251,25.85236394,87.797,87.66,6.0]
[1643373812450,17.119,87.77,87.65,13.58]
[1643373812650,17.119,87.77,87.651,44.67864028]
[1643373812850,50.32782121,87.769,87.651,44.67864028]
[1643373813051,53.28451263,87.769,87.65,13.58]
[1643373813253,126.0288652,87.768,87.62,13.58]
[1643373813455,0.30032413,87.745,87.63,6.0]
[1643373813653,17.123,87.73,87.63,6.0]
[1643373813852,0.25,87.729,87.63,6.0]
[1643373814052,11.00002786,87.729,87.631,48.72465083]
[1643373814559,11.00002786,87.729,87.641,6.0]
[1643373814954,11.00002786,87.729,87.642,0.25]
[1643373815154,17.121,87.72,87.642,0.25]
[1643373815355,0.25,87.719,87.642,0.25]
[1643373816057,17.121,87.72,87.642,0.25]
[1643373816256,10.75002786,87.729,87.65,13.58]
[1643373816457,10.75002786,87.729,87.651,19.79967388]
[1643373816660,10.75002786,87.729,87.661,6.0]
[1643373816956,10.75002786,87.729,87.671,48.72465083]
[1643373817358,0.25,87.728,87.672,0.25]
[1643373817563,10.75002786,87.729,87.672,0.25]
[1643373818561,17.112,87.76,87.672,113.15]
[1643373818761,57.034,87.79,87.672,113.15]
[1643373819659,43.46692288,87.789,87.682,6.0]
[1643373820058,17.109,87.78,87.682,6.0]
[1643373820263,0.25,87.779,87.683,0.25]
[1643373821259,17.111,87.77,87.683,0.25]
[1643373821461,7.18875241,87.769,87.683,0.25]
[1643373821660,7.43875241,87.769,87.683,0.25]
[1643373822260,7.43875241,87.769,87.69,6.0]
[1643373822461,7.43875241,87.769,87.691,19.79967388]
[1643373822760,17.112,87.76,87.69,6.0]
[1643373823161,0.25,87.759,87.67,13.58]
[1643373823460,0.25,87.759,87.68,6.0]
[1643373823663,0.25,87.759,87.677,35.6404663]
[1643373824061,17.114,87.75,87.677,35.6404663]
[1643373824261,0.25,87.749,87.67,13.58]
[1643373825065,0.25,87.749,87.68,5.5]
[1643373825262,41.84470563,87.749,87.68,5.5]
[1643373826266,41.84470563,87.749,87.671,35.84078619]
[1643373826464,41.84470563,87.749,87.67,13.58]
[1643373826863,41.84470563,87.749,87.671,0.25]
[1643373827464,41.84470563,87.749,87.671,35.31088944]
[1643373827867,41.84470563,87.749,87.67,13.58]
[1643373828065,41.59470563,87.749,87.67,13.58]
[1643373828568,112.9,87.748,87.63,13.58]
[1643373828770,129.75281746,87.748,87.61,13.58]
[1643373828969,129.75281746,87.748,87.606,39.24595788]
[1643373828970,36.96388965,87.747,87.606,39.24595788]
[1643373829168,160.5114623,87.747,87.59,13.58]
[1643373829367,27.11054295,87.746,87.59,13.58]
[1643373829571,47.17005183,87.746,87.59,13.58]
[1643373829771,46.92005183,87.745,87.591,112.9]
[1643373829972,17.116,87.74,87.603,6.0]
[1643373830173,30.696,87.74,87.603,6.0]
[1643373830373,123.87106267,87.739,87.603,6.0]
[1643373830573,146.47046267,87.739,87.604,6.0]
[1643373830775,10.72106267,87.738,87.604,6.0]
[1643373830973,10.72106267,87.738,87.605,112.9]
[1643373831172,113.15,87.737,87.605,113.15]
[1643373831388,112.9,87.737,87.605,113.15]
[1643373831576,10.72106267,87.736,87.605,113.15]
[1643373831773,112.9,87.735,87.605,113.15]
[1643373831975,17.123,87.73,87.605,113.15]
[1643373832574,112.9,87.729,87.605,113.15]
[1643373832777,112.9,87.729,87.605,0.25]
[1643373832979,112.9,87.729,87.605,113.15]
[1643373833181,112.9,87.729,87.605,0.25]
[1643373833480,17.124,87.72,87.604,6.0]
[1643373833681,112.9,87.719,87.604,6.0]
[1643373833882,123.87106267,87.719,87.603,6.0]
[1643373834279,123.87106267,87.719,87.604,0.25]
[1643373834480,10.97106267,87.719,87.605,112.9]
[1643373834679,16.38948028,87.728,87.605,112.9]
[1643373834680,13.58,87.74,87.61,13.58]
[1643373834880,13.58,87.74,87.616,112.9]
[1643373835081,60.44318965,87.747,87.63,13.58]
[1643373835280,36.96388965,87.747,87.631,0.25]
[1643373835482,36.96388965,87.747,87.641,36.86247906]
[1643373835680,36.96388965,87.747,87.65,13.58]
[1643373835981,0.25,87.746,87.65,13.58]
[1643373836182,17.116,87.74,87.65,13.58]
[1643373836384,0.25,87.739,87.65,13.58]
[1643373837206,17.118,87.73,87.65,13.58]
[1643373837407,0.25,87.729,87.66,6.0]
[1643373837606,0.25,87.729,87.61,13.58]
[1643373838107,0.25,87.729,87.629,6.0]
[1643373838506,0.25,87.745,87.629,6.0]
[1643373838910,2.95669142,87.744,87.637,6.0]
[1643373839109,17.121,87.72,87.637,6.0]
[1643373839311,0.25,87.719,87.637,6.0]
[1643373839512,0.25,87.719,87.64,6.0]
[1643373839909,0.25,87.719,87.641,42.53098889]
[1643373840109,17.121,87.72,87.651,6.0]
[1643373840510,17.121,87.72,87.641,42.53098889]
[1643373840915,17.121,87.72,87.63,13.58]
[1643373841110,17.121,87.72,87.64,6.0]
[1643373841514,0.25,87.719,87.64,6.0]
[1643373841713,0.25,87.719,87.598,3.13165142]
[1643373841714,17.123,87.71,87.598,3.13165142]
[1643373841911,17.123,87.71,87.6,13.58]
[1643373841912,28.61849444,87.709,87.6,13.58]